Workbook

Sheet Feuille 1
E1: Seules les cases jaunes sont modifiables
B3: CALCULER VOTRE REVENU A PARTIR DU PRIX DE VENTE
E5: TVA | G5: TVA | I5: TVA
E6: 0.2 | G6: 0.055 | I6: -
B7: Prix de vente TTC | E7: 10 | G7: 92 | I7: 10
B8: Prix de vente HT (Hors Taxes) | E8: =E7/(1+$E$6) -> 8.333333333 | G8: =G7/(1+$G$6) -> 87.20379147 | I8: =I7 -> 10
B9: Frais de service Responsable de Ruche (Hors Taxes) | C9: 0.075 | E9: =ROUND(E8*$C$9,2) -> 0.63 | G9: =ROUND(G8*$C$9,2) -> 6.54 | I9: =ROUND(I8*$C$9,2) -> 0.75
B10: Frais de service Equanum SAS (1) (Hors Taxes) | C10: 0.108 | E10: =ROUND(E8*$C$10,2) -> 0.9 | G10: =ROUND(G8*$C$10,2) -> 9.42 | I10: =ROUND(I8*$C$10,2) -> 1.08
B11: Frais de location Gare SNCF | C11: 0.017 | E11: =ROUND(E8*$C$11,2) -> 0.14 | G11: =ROUND(G8*$C$11,2) -> 1.48 | I11: =ROUND(I8*$C$11,2) -> 0.17
B12: Votre revenu HT (Hors Taxes) | E12: =E8-E9-E10-E11 -> 6.663333333 | G12: =G8-G9-G10-G11 -> 69.76379147 | I12: =I8-I9-I10-I11 -> 8
B14: TVA récoltée | E14: =E7-E8 -> 1.666666667 | G14: =G7-G8 -> 4.796208531 | I14: =I7-I8 -> 0
B15: TVA facturée par Equanum SAS + SNCF (2) | D15: ou | E15: =ROUND((E10+E11)*$E$6,2) -> 0.21 | F15: ou | G15: =ROUND((G10+G11)*$E$6,2) -> 2.18 | H15: ou | I15: =ROUND((I10+I11)*$E$6,2) -> 0.25
B16: TVA facturée par le Responsable de Ruche, Equanum SAS + SNCF (2) | E16: =(E9*$E$6)+E15 -> 0.336 | G16: =(G9*$E$6)+G15 -> 3.488 | I16: =(I9*$E$6)+I15 -> 0.4
B18: Revenu net (activité Responsable de Ruche non soumis à TVA) | D18: ou | E18: =E7-E9-E10-E15-E11 -> 8.12 | F18: ou | G18: =G7-G9-G10-G15-G11 -> 72.38 | H18: ou | I18: =I7-I9-I10-I15-I11 -> 7.75
B19: Revenu net (activité Responsable de Ruche soumis à TVA) | E19: =E7-E9-E10-E16-E11 -> 7.994 | G19: =G7-G9-G10-G16-G11 -> 71.072 | I19: =I7-I9-I10-I16-I11 -> 7.6
B22: CALCULER VOTRE PRIX DE VENTE A PARTIR DE VOTRE REVENU
E24: TVA | G24: TVA | I24: TVA
E25: 0.2 | G25: 0.055 | I25: -
B26: Votre revenu HT (Hors Taxes) | E26: =E12 -> 6.663333333 | G26: =G12 -> 69.76379147 | I26: =I12 -> 8
B27: Prix de vente HT (Hors Taxes) | E27: =E26/(1-($C$28+$C$29+$C$30)) -> 8.329166667 | G27: =G26/(1-($C$28+$C$29+$C$30)) -> 87.20473934 | I27: =I26/(1-($C$28+$C$29+$C$30)) -> 10
B28: Frais de service Responsable de Ruche (Hors Taxes) | C28: 0.075 | E28: =ROUND(E27*$C$28,2) -> 0.62 | G28: =ROUND(G27*$C$28,2) -> 6.54 | I28: =ROUND(I27*$C$28,2) -> 0.75
B29: Frais de service Equanum SAS (1) (Hors Taxes) | C29: 0.108 | E29: =ROUND(E27*$C$29,2) -> 0.9 | G29: =ROUND(G27*$C$29,2) -> 9.42 | I29: =ROUND(I27*$C$29,2) -> 1.08
B30: Frais de location Gare SNCF | C30: 0.017 | E30: =E27*$C$30 -> 0.1415958333 | G30: =G27*$C$30 -> 1.482480569 | I30: =I27*$C$30 -> 0.17
B31: Prix de vente TTC | E31: =ROUND(E27*(1+E25),2) -> 10 | G31: =ROUND(G27*(1+G25),2) -> 92 | I31: =I27 -> 10
B33: TVA récoltée | E33: =E31-E27 -> 1.670833333 | G33: =G31-G27 -> 4.795260664 | I33: =I31-I27 -> 0
B34: TVA facturée par Equanum SAS (2) | D34: ou | E34: =ROUND((E29+E30)*$E$25,2) -> 0.21 | F34: ou | G34: =ROUND((G29+G30)*$E$25,2) -> 2.18 | H34: ou | I34: =ROUND((I29+I30)*$E$25,2) -> 0.25
B35: TVA facturée par le Responsable de Ruche et Equanum SAS (2) | E35: =(E28*E25)+E34 -> 0.334 | G35: =(G28*E25)+G34 -> 3.488 | I35: =(I28*E25)+I34 -> 0.4
B37: Revenu net (activité Responsable de Ruche non soumis à TVA) | D37: ou | E37: =E31-E28-E29-E34-E30 -> 8.128404167 | F37: ou | G37: =G31-G28-G29-G34-G30 -> 72.37751943 | H37: ou | I37: =I31-I28-I29-I34-I30 -> 7.75
B38: Revenu net (activité Responsable de Ruche soumis à TVA) | E38: =E31-E28-E29-E35-E30 -> 8.004404167 | G38: =G31-G28-G29-G35-G30 -> 71.06951943 | I38: =I31-I28-I29-I35-I30 -> 7.6
B41: (1) Equanum SAS est la société de la Ruche Mama
B42: (2) La TVA facturée varie selon le statut de l'entreprise de votre Responsable de Ruche. Certains ne facturent pas la TVA. D'autres la facturent à un taux de 20%. Les frais de service de la Ruche Mama sont toujours facturés avec une TVA à 20%.
B43: Remarque : Ce tableau est une simple aide à la gestion. Il n’a aucune valeur comptable. En raison des arrondis, le montant affiché sur vos factures peut différer.
